fUST/lending_fUST_20250623
["ID","MTS","AMOUNT","RATE_DAILY","PERIOD"]
[367059909,1750641038541,-3480.83790388,0.00021806,2]
[367059910,1750641038555,-318.26,0.00021806,2]
[367059911,1750641038568,-2964.8317006,0.00021806,2]
[367059912,1750641038649,-17376.98316228,0.00021806,2]
[367059913,1750641038661,-223.54455735,0.00021807,2]
[367059914,1750641038672,-2000.89,0.0002189,10]
[367059915,1750641038683,-639379.53215,0.000219,2]
[367059916,1750641038695,-300.0,0.00021905,2]
[367059917,1750641038706,-300.0,0.00021905,2]
[367059919,1750641038717,-1200.0,0.00021905,2]
[367059921,1750641038728,-1673.2546598,0.00021907,3]
[367059924,1750641038739,-857.75,0.00021907,3]
[367059926,1750641038751,-428.88,0.00021907,3]
[367059928,1750641038762,-214.44,0.00021907,3]
[367059930,1750641038773,-643.34,0.00021907,3]
[367059932,1750641038785,-327.94053249,0.00021916,2]
[367059935,1750641038796,-232.65,0.00021916,2]
[367059936,1750641038807,-500.0,0.00021916,7]
[367059937,1750641038818,-460.0,0.00021917,2]
[367059938,1750641038831,-460.0,0.00021917,2]
[367059939,1750641038842,-460.0,0.00021917,2]
[367059940,1750641038853,-460.0,0.00021917,2]
[367059941,1750641038864,-460.0,0.00021917,2]
[367059942,1750641038875,-460.0,0.00021917,2]
[367059943,1750641038886,-500.0,0.00021917,2]
[367059944,1750641038898,-460.0,0.00021917,2]
[367059945,1750641038909,-460.0,0.00021917,2]
[367059946,1750641038921,-460.0,0.00021917,2]
[367059947,1750641038932,-460.0,0.00021917,2]
[367059948,1750641038943,-460.0,0.00021917,2]
[367059949,1750641038954,-515.70850857,0.00021917,2]
[367059950,1750641038965,-460.0,0.00021917,2]
[367059951,1750641038976,-444.01639997,0.00021917,2]
[367059952,1750641038988,-460.0,0.00021917,2]
[367059953,1750641038999,-460.0,0.00021917,2]
[367059954,1750641039010,-460.0,0.00021917,2]
[367059955,1750641039021,-460.0,0.00021917,2]
[367059956,1750641039032,-460.0,0.00021917,2]
[367059957,1750641039043,-460.0,0.00021917,2]
[367059958,1750641039055,-460.0,0.00021917,2]
[367059959,1750641039066,-508.10421583,0.00021917,2]
[367059960,1750641039078,-294.65813674,0.00021917,2]
[367059961,1750641039089,-423.39526778,0.00021917,2]
[367059962,1750641039100,-470.81705909,0.00021917,2]
[367059963,1750641039112,-432.2598092,0.00021917,2]
[367059964,1750641039124,-460.0,0.00021917,2]
[367059965,1750641039136,-203.64455972,0.00021917,2]
[367059966,1750641039148,-460.0,0.00021917,2]
[367059967,1750641039159,-460.0,0.00021917,2]
[367059968,1750641039172,-460.0,0.00021917,2]
[367059969,1750641039183,-467.6248032,0.00021917,2]
[367059970,1750641039195,-460.0,0.00021917,2]
[367059971,1750641039208,-460.0,0.00021917,2]
[367059972,1750641039220,-460.0,0.00021917,2]
[367059973,1750641039233,-460.0,0.00021917,2]
[367059974,1750641039246,-428.29636116,0.00021917,2]
[367059975,1750641039258,-460.0,0.00021917,2]
[367059976,1750641039269,-460.0,0.00021917,2]
[367059977,1750641039280,-343.70778224,0.00021917,2]
[367059978,1750641039292,-460.0,0.00021917,2]
[367059979,1750641039304,-460.0,0.00021917,2]
[367059980,1750641039316,-460.0,0.00021917,2]
[367059981,1750641039328,-460.0,0.00021917,2]
[367059982,1750641039339,-460.0,0.00021917,2]
[367059983,1750641039351,-460.0,0.00021917,2]
[367059984,1750641039363,-460.0,0.00021917,2]
[367059985,1750641039375,-460.0,0.00021917,2]
[367059986,1750641039386,-460.0,0.00021917,2]
[367059987,1750641039397,-460.0,0.00021917,2]
[367059988,1750641039408,-805.35,0.00021917,2]
[367059989,1750641039419,-460.0,0.00021917,2]
[367059990,1750641039432,-601.63883088,0.00021917,2]
[367059991,1750641039444,-460.0,0.00021917,2]
[367059992,1750641039455,-460.0,0.00021917,2]
[367059993,1750641039467,-460.0,0.00021917,2]
[367059994,1750641039477,-460.0,0.00021917,2]
[367059995,1750641039488,-460.0,0.00021917,2]
[367059996,1750641039499,-943.55,0.00021917,2]
[367059997,1750641039510,-943.55,0.00021917,2]
[367059998,1750641039520,-460.0,0.00021917,2]
[367059999,1750641039532,-460.0,0.00021917,2]
[367060000,1750641039542,-460.0,0.00021917,2]
[367060001,1750641039553,-460.0,0.00021917,2]
[367060002,1750641039564,-460.0,0.00021917,2]
[367060003,1750641039575,-460.0,0.00021917,2]
[367060004,1750641039585,-460.0,0.00021917,2]
[367060005,1750641039598,-460.0,0.00021917,2]
[367060006,1750641039610,-481.51,0.00021917,2]
[367060007,1750641039622,-460.0,0.00021917,2]
[367060008,1750641039633,-500.0,0.00021917,2]
[367060009,1750641039644,-460.0,0.00021917,2]
[367060010,1750641039655,-633.11,0.00021917,2]
[367060011,1750641039666,-460.0,0.00021917,2]
[367060012,1750641039677,-371.64696487,0.00021917,2]
[367060013,1750641039690,-460.0,0.00021917,2]
[367060014,1750641039701,-405.68933282,0.00021917,2]
[367060015,1750641039711,-460.0,0.00021917,2]
[367060016,1750641039722,-675.19,0.00021917,2]
[367060017,1750641039733,-439.58136444,0.00021917,2]
[367060018,1750641039743,-460.0,0.00021917,2]
[367060019,1750641039754,-460.0,0.00021917,2]
[367060020,1750641039765,-460.0,0.00021917,2]
[367060021,1750641039775,-460.0,0.00021917,2]
[367060022,1750641039786,-460.0,0.00021917,2]
[367060023,1750641039796,-460.0,0.00021917,2]
[367060024,1750641039807,-473.7,0.00021917,2]
[367060025,1750641039818,-460.0,0.00021917,2]
[367060026,1750641039829,-460.0,0.00021917,2]
[367060027,1750641039840,-460.0,0.00021917,2]
[367060028,1750641039851,-462.00208149,0.00021917,2]
[367060029,1750641039862,-460.0,0.00021917,2]
[367060030,1750641039873,-460.0,0.00021917,2]
[367060031,1750641039884,-444.58093495,0.00021917,2]
[367060032,1750641039894,-460.0,0.00021917,2]
[367060033,1750641039905,-460.0,0.00021917,2]
[367060034,1750641039916,-460.31570967,0.00021917,2]
[367060035,1750641039926,-460.0,0.00021917,2]
[367060036,1750641039937,-401.69998816,0.00021917,2]
[367060037,1750641039948,-460.0,0.00021917,2]
[367060038,1750641039958,-432.48975922,0.00021917,2]
[367060039,1750641039970,-748.64,0.00021917,2]
[367060040,1750641039981,-460.0,0.00021917,2]
[367060041,1750641039992,-460.0,0.00021917,2]
[367060042,1750641040003,-607.07088979,0.00021917,2]
[367060043,1750641040014,-353.60071197,0.00021917,2]
[367060044,1750641040024,-460.0,0.00021917,2]
[367060045,1750641040033,-460.0,0.00021917,2]
[367060046,1750641040042,-460.0,0.00021917,2]
[367060047,1750641040051,-430.0,0.00021917,2]
[367060048,1750641040060,-552.1355503,0.00021917,2]
[367060049,1750641040069,-269.33171345,0.00021917,2]
[367060050,1750641040078,-460.0,0.00021917,2]
[367060051,1750641040087,-460.0,0.00021917,2]
[367060052,1750641040097,-276.84243719,0.00021917,2]
[367060053,1750641040107,-460.0,0.00021917,2]
[367060054,1750641040116,-307.69259463,0.00021917,2]
[367060055,1750641040125,-460.0,0.00021917,2]
[367060056,1750641040466,-460.0,0.00021917,2]
[367060057,1750641040494,-460.0,0.00021917,2]
[367060058,1750641040508,-460.0,0.00021917,2]
[367060059,1750641040518,-460.0,0.00021917,2]
[367060060,1750641040528,-460.0,0.00021917,2]
[367060061,1750641040539,-578.66057676,0.00021917,2]
[367060062,1750641040548,-460.0,0.00021917,2]
[367060063,1750641040558,-358.21032067,0.00021917,2]
[367060064,1750641040567,-547.67,0.00021917,2]
[367060065,1750641040576,-609.13,0.00021917,2]
[367060066,1750641040586,-460.0,0.00021917,2]
[367060067,1750641040597,-460.0,0.00021917,2]
[367060068,1750641040609,-480.58439964,0.00021917,2]
[367060069,1750641040620,-460.0,0.00021917,2]
[367060070,1750641040630,-460.0,0.00021917,2]
[367060071,1750641040640,-460.0,0.00021917,2]
[367060072,1750641040650,-728.07,0.00021917,2]
[367060073,1750641040660,-460.0,0.00021917,2]
[367060074,1750641040669,-460.0,0.00021917,2]
[367060075,1750641040678,-460.0,0.00021917,2]
[367060076,1750641040688,-460.0,0.00021917,2]
[367060077,1750641040698,-966.27,0.00021917,2]
[367060078,1750641040707,-460.0,0.00021917,2]
[367060079,1750641040716,-724.71,0.00021917,2]
[367060080,1750641040725,-460.0,0.00021917,2]
[367060081,1750641040735,-460.0,0.00021917,2]
[367060082,1750641040744,-920.84,0.00021917,2]
[367060083,1750641040754,-614.59,0.00021917,2]
[367060084,1750641040763,-1716.04,0.00021917,2]
[367060085,1750641040773,-460.0,0.00021917,2]
[367060086,1750641040784,-460.0,0.00021917,2]
[367060087,1750641040794,-460.0,0.00021917,2]
[367060088,1750641040804,-460.0,0.00021917,2]
[367060089,1750641040813,-460.0,0.00021917,2]
[367060090,1750641040823,-360.79063501,0.00021917,2]
[367060091,1750641040832,-460.0,0.00021917,2]
[367060092,1750641040842,-1460.71,0.00021917,2]
[367060093,1750641040851,-460.0,0.00021917,2]
[367060094,1750641040861,-327.54280683,0.00021917,2]
[367060095,1750641040871,-365.82918022,0.00021917,2]
[367060096,1750641040880,-460.0,0.00021917,2]
[367060097,1750641040890,-460.0,0.00021917,2]
[367060098,1750641040899,-432.86542243,0.00021917,2]
[367060100,1750641040908,-983.72,0.00021917,2]
[367060101,1750641040917,-460.0,0.00021917,2]
[367060102,1750641040927,-479.72,0.00021917,2]
[367060103,1750641040936,-460.0,0.00021917,2]
[367060105,1750641040945,-460.0,0.00021917,2]
[367060107,1750641040955,-460.0,0.00021917,2]
[367060108,1750641040964,-400.9064859,0.00021917,2]
[367060109,1750641040973,-460.0,0.00021917,2]
[367060110,1750641040983,-460.0,0.00021917,2]
[367060111,1750641040992,-460.0,0.00021917,2]
[367060112,1750641041002,-460.0,0.00021917,2]
[367060113,1750641041011,-460.0,0.00021917,2]
[367060114,1750641041020,-460.0,0.00021917,2]
[367060115,1750641041029,-709.93,0.00021917,2]
[367060116,1750641041039,-786.92,0.00021917,2]
[367060117,1750641041048,-460.0,0.00021917,2]
[367060118,1750641041057,-152.01700912,0.00021917,2]
[367060119,1750641041067,-3063.12,0.00021917,2]
[367060120,1750641041076,-460.0,0.00021917,2]
[367060121,1750641041085,-460.0,0.00021917,2]
[367060122,1750641041095,-460.0,0.00021917,2]
[367060123,1750641041105,-460.0,0.00021917,2]
[367060124,1750641041115,-460.0,0.00021917,2]
[367060125,1750641041123,-550.34,0.00021917,2]
[367060126,1750641041133,-460.0,0.00021917,2]
[367060127,1750641041142,-460.0,0.00021917,2]
[367060128,1750641041151,-460.0,0.00021917,2]
[367060129,1750641041169,-460.0,0.00021917,2]
[367060130,1750641041178,-514.75,0.00021917,2]
[367060131,1750641041187,-460.0,0.00021917,2]
[367060132,1750641041196,-523.26055691,0.00021917,2]
[367060133,1750641041207,-460.0,0.00021917,2]
[367060134,1750641041227,-460.0,0.00021917,2]
[367060135,1750641041236,-460.0,0.00021917,2]
[367060136,1750641041245,-872.88,0.00021917,2]
[367060137,1750641041255,-200.6829003,0.00021917,2]
[367060138,1750641041264,-460.0,0.00021917,2]
[367060139,1750641041273,-1903.82,0.00021917,2]
[367060140,1750641041282,-460.0,0.00021917,2]
[367060141,1750641041291,-460.0,0.00021917,2]
[367060142,1750641041300,-460.0,0.00021917,2]
[367060143,1750641041310,-460.0,0.00021917,2]
[367060144,1750641041319,-720.77,0.00021917,2]
[367060145,1750641041328,-855.44,0.00021917,2]
[367060146,1750641041338,-460.0,0.00021917,2]
[367060147,1750641041348,-460.0,0.00021917,2]
[367060148,1750641041357,-1228.28,0.00021917,2]
[367060149,1750641041366,-460.0,0.00021917,2]
[367060150,1750641041376,-460.0,0.00021917,2]
[367060151,1750641041386,-424.4562788,0.00021917,2]
[367060152,1750641041395,-460.0,0.00021917,2]
[367060153,1750641041404,-460.0,0.00021917,2]
[367060154,1750641041413,-460.0,0.00021917,2]
[367060155,1750641041423,-403.4262392,0.00021917,2]
[367060156,1750641041432,-1960.17,0.00021917,2]
[367060157,1750641041441,-460.0,0.00021917,2]
[367060158,1750641041451,-460.0,0.00021917,2]
[367060159,1750641041460,-463.9980877,0.00021917,2]
[367060160,1750641041470,-460.0,0.00021917,2]
[367060161,1750641041479,-460.0,0.00021917,2]
[367060162,1750641041489,-460.0,0.00021917,2]
[367060163,1750641041498,-460.0,0.00021917,2]
[367060164,1750641041508,-460.0,0.00021917,2]
[367060165,1750641041518,-460.0,0.00021917,2]
[367060166,1750641041527,-999.73,0.00021917,2]
[367060167,1750641041536,-460.0,0.00021917,2]
[367060168,1750641041546,-533.1,0.00021917,2]
[367060169,1750641041555,-460.0,0.00021917,2]
[367060170,1750641041565,-460.0,0.00021917,2]
[367060171,1750641041574,-460.0,0.00021917,2]
[367060172,1750641041583,-460.0,0.00021917,2]
[367060173,1750641041593,-460.0,0.00021917,2]
[367060174,1750641041603,-460.0,0.00021917,2]
[367060175,1750641041615,-1988.93,0.00021917,2]
[367060176,1750641041625,-722.67,0.00021917,2]
[367060177,1750641041634,-460.0,0.00021917,2]
[367060178,1750641041643,-830.9,0.00021917,2]
[367060179,1750641041652,-460.0,0.00021917,2]
[367060180,1750641041663,-460.0,0.00021917,2]
[367060181,1750641041672,-460.0,0.00021917,2]
[367060182,1750641041682,-460.0,0.00021917,2]
[367060183,1750641041692,-460.0,0.00021917,2]
[367060184,1750641041702,-1155.8,0.00021917,2]
[367060185,1750641041711,-621.27,0.00021917,2]
[367060186,1750641041721,-460.0,0.00021917,2]
[367060187,1750641041730,-1359.94,0.00021917,2]
[367060188,1750641041739,-460.0,0.00021917,2]
[367060189,1750641041749,-406.22550796,0.00021917,2]
[367060190,1750641041759,-460.0,0.00021917,2]
[367060191,1750641041768,-460.0,0.00021917,2]
[367060192,1750641041778,-460.0,0.00021917,2]
[367060193,1750641041787,-460.0,0.00021917,2]
[367060194,1750641041797,-460.0,0.00021917,2]
[367060195,1750641041806,-460.0,0.00021917,2]
[367060196,1750641041816,-460.0,0.00021917,2]
[367060197,1750641041825,-460.0,0.00021917,2]
[367060198,1750641041834,-531.07,0.00021917,2]
[367060199,1750641041844,-460.0,0.00021917,2]
[367060200,1750641041854,-460.0,0.00021917,2]
[367060201,1750641041863,-460.0,0.00021917,2]
[367060202,1750641041873,-460.0,0.00021917,2]
[367060203,1750641041883,-1001.7,0.00021917,2]
[367060204,1750641041893,-460.0,0.00021917,2]
[367060205,1750641041902,-460.0,0.00021917,2]
[367060206,1750641041912,-460.0,0.00021917,2]
[367060207,1750641041921,-460.0,0.00021917,2]
[367060208,1750641041930,-460.0,0.00021917,2]
[367060209,1750641041939,-460.0,0.00021917,2]
[367060210,1750641041949,-460.0,0.00021917,2]
[367060211,1750641041958,-1144.68,0.00021917,2]
[367060212,1750641041968,-460.0,0.00021917,2]
[367060213,1750641041978,-766.59,0.00021917,2]
[367060214,1750641041988,-300.69144074,0.00021917,2]
[367060215,1750641041997,-460.0,0.00021917,2]
[367060216,1750641042007,-1297.99,0.00021917,2]
[367060217,1750641042016,-277.82840209,0.00021917,2]
[367060218,1750641042026,-460.0,0.00021917,2]
[367060219,1750641042035,-460.0,0.00021917,2]
[367060220,1750641042045,-460.0,0.00021917,2]
[367060221,1750641042053,-460.0,0.00021917,2]
[367060222,1750641042063,-460.0,0.00021917,2]
[367060223,1750641042073,-460.0,0.00021917,2]
[367060224,1750641042082,-465.21859252,0.00021917,2]
[367060225,1750641042092,-460.0,0.00021917,2]
[367060226,1750641042102,-460.0,0.00021917,2]
[367060227,1750641042111,-460.0,0.00021917,2]
[367060228,1750641042121,-488.05,0.00021917,2]
[367060229,1750641042130,-460.0,0.00021917,2]
[367060230,1750641042140,-1480.63,0.00021917,2]
[367060231,1750641042149,-460.0,0.00021917,2]
[367060232,1750641042158,-1678.17,0.00021917,2]
[367060233,1750641042168,-460.0,0.00021917,2]
[367060234,1750641042177,-405.68467905,0.00021917,2]
[367060235,1750641042186,-460.0,0.00021917,2]
[367060236,1750641042195,-460.0,0.00021917,2]
[367060237,1750641042204,-460.0,0.00021917,2]
[367060238,1750641042213,-460.0,0.00021917,2]
[367060239,1750641042224,-1276.46,0.00021917,2]
[367060240,1750641042234,-460.0,0.00021917,2]
[367060241,1750641042243,-460.0,0.00021917,2]
[367060242,1750641042253,-460.0,0.00021917,2]
[367060243,1750641042262,-460.0,0.00021917,2]
[367060244,1750641042271,-760.27,0.00021917,2]
[367060245,1750641042280,-460.0,0.00021917,2]
[367060246,1750641042290,-460.0,0.00021917,2]
[367060247,1750641042299,-460.0,0.00021917,2]
[367060248,1750641042308,-876.54,0.00021917,2]
[367060249,1750641042318,-514.81,0.00021917,2]
[367060250,1750641042327,-496.88,0.00021917,2]
[367060251,1750641042336,-460.0,0.00021917,2]
[367060252,1750641042347,-460.0,0.00021917,2]
[367060253,1750641042356,-460.0,0.00021917,2]
[367060254,1750641042365,-460.0,0.00021917,2]
[367060255,1750641042375,-1304.22,0.00021917,2]
[367060256,1750641042384,-460.0,0.00021917,2]
[367060257,1750641042393,-460.0,0.00021917,2]
[367060258,1750641042403,-460.0,0.00021917,2]
[367060259,1750641042413,-1225.68,0.00021917,2]
[367060260,1750641042423,-460.0,0.00021917,2]
[367060261,1750641042432,-460.0,0.00021917,2]
[367060262,1750641042442,-439.41544095,0.00021917,2]
[367060263,1750641042451,-460.0,0.00021917,2]
[367060264,1750641042461,-1054.14,0.00021917,2]
[367060265,1750641042471,-460.0,0.00021917,2]
[367060266,1750641042480,-460.0,0.00021917,2]
[367060267,1750641042490,-460.0,0.00021917,2]
[367060268,1750641042499,-460.0,0.00021917,2]
[367060269,1750641042508,-460.0,0.00021917,2]
[367060270,1750641042517,-460.0,0.00021917,2]
[367060271,1750641042526,-1080.03,0.00021917,2]
[367060272,1750641042536,-421.59130579,0.00021917,2]
[367060273,1750641042545,-460.0,0.00021917,2]
[367060274,1750641042554,-272.12316147,0.00021917,2]
[367060275,1750641042564,-460.0,0.00021917,2]
[367060276,1750641042573,-460.0,0.00021917,2]
[367060277,1750641042582,-939.98,0.00021917,2]
[367060278,1750641042591,-570.53286838,0.00021917,2]
[367060279,1750641042601,-939.98,0.00021917,2]
[367060280,1750641042611,-939.98,0.00021917,2]
[367060281,1750641042624,-1442.45,0.00021917,2]
[367060282,1750641042634,-939.98,0.00021917,2]
[367060283,1750641042644,-460.0,0.00021917,2]
[367060284,1750641042654,-939.98,0.00021917,2]
[367060285,1750641042663,-939.98,0.00021917,2]
[367060286,1750641042673,-939.98,0.00021917,2]
[367060287,1750641042682,-939.98,0.00021917,2]
[367060288,1750641042694,-939.98,0.00021917,2]
[367060289,1750641042704,-460.0,0.00021917,2]
[367060290,1750641042713,-460.0,0.00021917,2]
[367060291,1750641042723,-939.98,0.00021917,2]
[367060292,1750641042732,-460.0,0.00021917,2]
[367060293,1750641042741,-939.98,0.00021917,2]
[367060294,1750641042751,-939.98,0.00021917,2]
[367060295,1750641042761,-939.98,0.00021917,2]
[367060296,1750641042770,-939.98,0.00021917,2]
[367060297,1750641042781,-939.98,0.00021917,2]
[367060298,1750641042791,-939.98,0.00021917,2]
[367060299,1750641042801,-939.98,0.00021917,2]
[367060300,1750641042811,-460.0,0.00021917,2]
[367060301,1750641042820,-939.98,0.00021917,2]
[367060302,1750641042830,-939.98,0.00021917,2]
[367060303,1750641042839,-939.98,0.00021917,2]
[367060304,1750641042849,-939.98,0.00021917,2]
[367060305,1750641042858,-939.98,0.00021917,2]
[367060306,1750641042868,-460.0,0.00021917,2]
[367060307,1750641042878,-939.98,0.00021917,2]
[367060308,1750641042887,-940.14,0.00021917,2]
[367060309,1750641042896,-460.0,0.00021917,2]
[367060310,1750641042906,-460.0,0.00021917,2]
[367060311,1750641042915,-460.0,0.00021917,2]
[367060312,1750641042925,-460.0,0.00021917,2]
[367060313,1750641042934,-460.0,0.00021917,2]
[367060314,1750641042944,-460.0,0.00021917,2]
[367060315,1750641042954,-460.0,0.00021917,2]
[367060316,1750641042964,-712.71,0.00021917,2]
[367060317,1750641042973,-1941.46,0.00021917,2]
[367060318,1750641042983,-460.0,0.00021917,2]
[367060319,1750641042993,-460.0,0.00021917,2]
[367060320,1750641043003,-460.0,0.00021917,2]
[367060321,1750641043012,-460.0,0.00021917,2]
[367060322,1750641043022,-460.0,0.00021917,2]
[367060323,1750641043032,-460.0,0.00021917,2]
[367060324,1750641043043,-460.0,0.00021917,2]
[367060325,1750641043052,-460.0,0.00021917,2]
[367060327,1750641043061,-460.0,0.00021917,2]
[367060328,1750641043071,-460.0,0.00021917,2]
[367060329,1750641043081,-460.0,0.00021917,2]
[367060330,1750641043091,-460.0,0.00021917,2]
[367060331,1750641043101,-460.0,0.00021917,2]
[367060332,1750641043110,-460.0,0.00021917,2]
[367060333,1750641043120,-469.54,0.00021917,2]
[367060334,1750641043130,-460.0,0.00021917,2]
[367060335,1750641043139,-514.16,0.00021917,2]
[367060336,1750641043149,-527.38,0.00021917,2]
[367060338,1750641043160,-429.08357843,0.00021917,2]
[367060339,1750641043169,-461.60323561,0.00021917,2]
[367060340,1750641043178,-460.0,0.00021917,2]
[367060341,1750641043187,-460.0,0.00021917,2]
[367060342,1750641043197,-460.0,0.00021917,2]
[367060343,1750641043207,-460.0,0.00021917,2]
[367060344,1750641043216,-460.0,0.00021917,2]
[367060345,1750641043226,-460.0,0.00021917,2]
[367060346,1750641043235,-557.06,0.00021917,2]
[367060347,1750641043245,-460.0,0.00021917,2]
[367060348,1750641043254,-403.10290659,0.00021917,2]
[367060350,1750641043263,-460.0,0.00021917,2]
[367060351,1750641043274,-513.78133367,0.00021917,2]
[367060353,1750641043283,-1004.52,0.00021917,2]
[367060354,1750641043293,-460.0,0.00021917,2]
[367060356,1750641043303,-705.63,0.00021917,2]
[367060357,1750641043312,-460.0,0.00021917,2]
[367060358,1750641043322,-460.0,0.00021917,2]
[367060359,1750641043333,-431.6371388,0.00021917,2]
[367060360,1750641043344,-460.0,0.00021917,2]
[367060361,1750641043356,-460.0,0.00021917,2]
[367060362,1750641043366,-460.0,0.00021917,2]
[367060363,1750641043376,-551.99151863,0.00021917,2]
[367060364,1750641043385,-460.0,0.00021917,2]
[367060365,1750641043395,-460.0,0.00021917,2]
[367060366,1750641043406,-460.0,0.00021917,2]
[367060367,1750641043415,-460.0,0.00021917,2]
[367060368,1750641043424,-530.72,0.00021917,2]
[367060369,1750641043434,-460.0,0.00021917,2]
[367060370,1750641043443,-460.0,0.00021917,2]
[367060371,1750641043453,-460.0,0.00021917,2]
[367060372,1750641043462,-460.0,0.00021917,2]
[367060373,1750641043472,-460.0,0.00021917,2]
[367060374,1750641043482,-460.0,0.00021917,2]
[367060375,1750641043491,-460.0,0.00021917,2]
[367060377,1750641043501,-460.0,0.00021917,2]
[367060378,1750641043511,-460.0,0.00021917,2]
[367060379,1750641043520,-340.05117822,0.00021917,2]
[367060380,1750641043530,-679.5,0.00021917,2]
[367060381,1750641043539,-460.0,0.00021917,2]
[367060382,1750641043548,-467.09,0.00021917,2]
[367060383,1750641043558,-500.0,0.00021917,2]
[367060384,1750641043567,-3500.32,0.00021917,2]
[367060385,1750641043577,-509.43803525,0.00021917,2]
[367060386,1750641043587,-460.0,0.00021917,2]
[367060387,1750641043596,-460.0,0.00021917,2]
[367060388,1750641043605,-483.26,0.00021917,2]
[367060389,1750641043619,-460.0,0.00021917,2]
[367060390,1750641043629,-460.0,0.00021917,2]
[367060391,1750641043638,-460.0,0.00021917,2]
[367060394,1750641043779,-503.10002049,0.00021917,2]
[367060395,1750641043816,-460.0,0.00021917,2]
[367060396,1750641043826,-460.0,0.00021917,2]
[367060397,1750641043836,-460.0,0.00021917,2]
[367060398,1750641043845,-460.0,0.00021917,2]
[367060399,1750641043855,-460.0,0.00021917,2]
[367060400,1750641043865,-460.0,0.00021917,2]
[367060401,1750641043875,-460.0,0.00021917,2]
[367060402,1750641043885,-391.50420459,0.00021917,2]
[367060403,1750641043895,-460.0,0.00021917,2]
[367060405,1750641043904,-460.0,0.00021917,2]
[367060406,1750641043913,-460.0,0.00021917,2]
[367060407,1750641043923,-460.0,0.00021917,2]
[367060408,1750641043932,-460.0,0.00021917,2]
[367060409,1750641043942,-460.0,0.00021917,2]
[367060410,1750641043951,-460.0,0.00021917,2]
[367060411,1750641043960,-500.0,0.00021917,2]
[367060412,1750641043969,-500.0,0.00021917,2]
[367060413,1750641043979,-500.0,0.00021917,2]
[367060414,1750641043988,-4941.3,0.00021917,2]
[367060415,1750641044001,-500.0,0.00021917,2]
[367060416,1750641044011,-500.0,0.00021917,2]
[367060417,1750641044020,-500.0,0.00021917,2]
[367060418,1750641044031,-500.0,0.00021917,2]
[367060419,1750641044040,-500.0,0.00021917,2]
[367060420,1750641044050,-500.0,0.00021917,2]
[367060421,1750641044059,-500.0,0.00021917,2]
[367060422,1750641044068,-500.0,0.00021917,2]
[367060423,1750641044078,-500.0,0.00021917,2]
[367060424,1750641044088,-460.0,0.00021917,2]
[367060425,1750641044098,-483.97393067,0.00021917,2]
[367060426,1750641044108,-5633.51,0.00021917,2]
[367060427,1750641044118,-460.0,0.00021917,2]
[367060428,1750641044127,-460.0,0.00021917,2]
[367060429,1750641044137,-995.91,0.00021917,2]
[367060430,1750641044147,-460.0,0.00021917,2]